bitfinex-derivatives/quotes_SOLF0:USTF0_20250505
["timestamp","ask_amount","ask_price","bid_price","bid_amount"]
[1746476758391,24.78654446,146.25,146.19,1.0]
[1746476759585,6.8404,146.22,146.19,7.8411]
[1746476760382,6.8405,146.21,146.19,7.8411]
[1746476761086,6.8402,146.22,146.19,7.8411]
[1746476762893,6.8402,146.22,146.2,6.8408]
[1746476763385,24.78654446,146.25,146.19,1.0]
[1746476763586,6.8395,146.24,146.19,1.0]
[1746476763779,13.35252,146.25,146.19,1.0]
[1746476763982,20.19152,146.25,146.22,6.8397]
[1746476765390,6.8392,146.24,146.22,6.8397]
[1746476766594,6.8396,146.23,146.21,6.8402]
[1746476766787,6.8396,146.23,146.19,1.0]
[1746476767188,6.8396,146.23,146.2,6.8407]
[1746476767594,6.8401,146.22,146.2,6.8407]
[1746476770499,6.8401,146.22,146.19,7.8411]
[1746476773702,6.8409,146.2,146.19,8.31008095]
[1746476774004,6.8409,146.2,146.19,1.0]
[1746476774209,14.15098095,146.2,146.19,1.0]
[1746476775702,6.8409,146.2,146.19,1.0]
[1746476777603,6.8427,146.17,146.14,30.8034]
[1746476780009,6.842,146.18,146.15,6.8433]
[1746476780403,2.0215,146.21,146.15,6.8433]
[1746476781005,6.8423,146.18,146.15,6.8433]
[1746476783512,6.8423,146.18,146.16,6.8427]
[1746476786506,6.8423,146.18,146.14,23.96]
[1746476786714,23.96,146.22,146.14,23.96]
[1746476786914,2.1399,146.21,146.14,23.96]
[1746476787219,6.8426,146.17,146.14,30.8034]
[1746476788913,6.8426,146.17,146.15,6.8432]
[1746476789302,2.1399,146.21,146.12,3.9151]
[1746476789508,11.43011643,146.2,146.12,6.8444]
[1746476789710,6.8437,146.15,146.12,6.8444]
[1746476790714,6.843,146.16,146.11,23.96]
[1746476792715,6.843,146.16,146.13,6.8439]
[1746476794615,26.0999,146.21,146.11,35.39011643]
[1746476794817,26.0999,146.21,146.12,6.218]
[1746476795114,26.0999,146.21,146.17,6.8421]
[1746476795316,25.9904,146.24,146.15,23.96]
[1746476795812,6.8405,146.21,146.19,6.8412]
[1746476796712,6.8402,146.22,146.19,6.8412]
[1746476797918,6.8405,146.21,146.19,6.8412]
[1746476798125,6.8405,146.21,146.18,6.8416]
[1746476798417,6.8405,146.21,146.15,23.96]
[1746476799821,6.8405,146.21,146.19,6.8413]
[1746476802523,6.8405,146.21,146.15,23.96]
[1746476802524,6.8405,146.21,146.18,6.8416]
[1746476802724,6.8405,146.21,146.15,23.96]
[1746476803025,6.8401,146.22,146.15,23.96]
[1746476804625,6.8401,146.22,146.2,6.8408]
[1746476805015,6.8401,146.22,146.15,23.96]
[1746476806621,25.9904,146.24,146.15,23.96]
[1746476807322,6.8413,146.2,146.17,6.842]
[1746476809825,6.8413,146.2,146.18,6.8417]
[1746476810725,6.8407,146.21,146.18,6.8417]
[1746476811627,6.8407,146.21,146.19,6.8414]
[1746476814929,25.9904,146.24,146.15,23.96]
[1746476815428,11.43011643,146.23,146.15,23.96]
[1746476815626,6.8422,146.18,146.15,30.803]
[1746476815828,11.43011643,146.23,146.15,23.96]
[1746476816028,11.43011643,146.23,146.12,6.218]
[1746476816029,6.8427,146.17,146.14,6.8435]
[1746476817532,6.8427,146.17,146.15,6.8432]
[1746476818427,6.8427,146.17,146.14,6.8435]
[1746476820334,23.94,146.2,146.14,1.0]
[1746476821131,30.7812,146.2,146.17,6.842]
[1746476821335,6.8412,146.2,146.17,6.842]
[1746476821836,6.8414,146.19,146.17,6.842]
[1746476823633,6.8414,146.19,146.15,23.94]
[1746476823838,6.8419,146.18,146.16,6.8426]
[1746476826841,6.8416,146.19,146.17,6.8422]
[1746476827042,35.37011643,146.23,146.15,23.94]
[1746476827443,35.37011643,146.23,146.17,6.8421]
[1746476828444,6.8412,146.2,146.17,6.8421]
[1746476828745,23.94,146.23,146.18,6.8417]
[1746476829244,6.8407,146.21,146.18,6.8417]
[1746476831348,6.8409,146.2,146.18,6.8417]
[1746476835146,6.8408,146.21,146.15,23.94]
[1746476835447,23.94,146.23,146.15,23.94]
[1746476835949,23.94,146.23,146.19,6.8411]
[1746476836549,6.8405,146.21,146.19,6.8411]
[1746476838249,6.8409,146.2,146.18,6.8418]
[1746476838549,23.94,146.23,146.15,23.94]
[1746476839249,6.8413,146.2,146.17,6.8419]
[1746476840251,6.8415,146.19,146.17,6.8419]
[1746476840550,6.8415,146.19,146.16,6.8426]
[1746476841354,6.8415,146.19,146.17,6.8422]
[1746476842053,6.8415,146.19,146.16,6.8426]
[1746476842651,23.94,146.23,146.15,30.783]
[1746476843253,6.8424,146.17,146.15,30.783]
[1746476843448,23.94,146.23,146.15,30.783]
[1746476843854,6.8421,146.18,146.15,30.783]
[1746476844553,6.8421,146.18,146.16,6.8428]
[1746476847758,6.8421,146.18,146.15,30.783]
[1746476848056,6.8415,146.19,146.15,23.94]
[1746476848356,6.8415,146.19,146.17,6.8421]
[1746476848757,6.8412,146.2,146.17,6.8421]
[1746476850757,6.8414,146.19,146.17,6.8421]
[1746476854774,6.8412,146.2,146.17,6.8421]
[1746476858175,6.8412,146.2,146.18,6.8418]
[1746476858573,6.8407,146.21,146.18,6.8418]
[1746476858870,23.94,146.23,146.18,6.8418]
[1746476859578,6.8402,146.22,146.18,6.8418]
[1746476859775,31.25263377,146.23,146.18,6.8418]
[1746476860277,6.841,146.2,146.18,6.8418]
[1746476862679,31.25263377,146.23,146.19,6.841]
[1746476863770,6.8407,146.21,146.19,6.841]
[1746476866685,6.8407,146.21,146.18,6.8416]
[1746476870287,6.8411,146.2,146.18,6.8416]
[1746476872186,6.8419,146.18,146.16,7.31263377]
[1746476872688,6.8419,146.18,146.16,6.8425]
[1746476875988,6.8428,146.16,146.14,7.8434]
[1746476879192,7.31263377,146.19,146.15,6.8433]
[1746476879390,2.016,146.2,146.15,6.8433]
[1746476879591,6.8417,146.19,146.16,7.31263377]
[1746476880397,6.8417,146.19,146.16,14.15503377]
[1746476880695,7.31263377,146.21,146.16,14.15503377]
[1746476880887,7.31263377,146.21,146.17,6.8423]
[1746476881089,6.8417,146.19,146.17,6.8423]
[1746476881293,6.8417,146.19,146.16,14.15523377]
[1746476881693,6.8421,146.18,146.16,6.8426]
[1746476882199,23.94,146.23,146.17,6.8423]
[1746476882397,6.8412,146.2,146.14,1.0]
[1746476882602,6.8412,146.2,146.15,23.92]
[1746476882898,23.94,146.23,146.15,35.34833807]
[1746476883097,2.1307,146.24,146.15,35.34833807]
[1746476883297,6.84,146.23,146.2,6.8406]
[1746476883691,2.1307,146.24,146.2,6.8406]
[1746476884201,2.1307,146.24,146.19,6.8411]
[1746476884402,2.1307,146.24,146.15,35.34833807]
[1746476884593,6.8407,146.21,146.15,35.34833807]
[1746476885800,6.8407,146.21,146.19,6.8414]
[1746476889405,6.8402,146.22,146.19,6.8414]
[1746476897305,23.92,146.21,146.14,2.0]
[1746476898311,6.8426,146.17,146.14,8.8437]
[1746476905417,6.842,146.18,146.14,2.0]
[1746476905613,23.92,146.21,146.14,2.0]
[1746476905822,23.92,146.21,146.17,7.31265809]
[1746476906116,6.8407,146.21,146.17,7.31265809]
[1746476906512,6.8403,146.22,146.17,7.31265809]
[1746476907517,6.8403,146.22,146.19,6.8411]
[1746476909318,6.8403,146.22,146.2,6.8409]
[1746476909613,6.8403,146.22,146.15,29.9358]
[1746476910821,6.8403,146.22,146.19,6.8412]
[1746476912221,6.8403,146.22,146.2,6.8409]
[1746476917028,6.8403,146.22,146.19,6.8411]
[1746476917326,6.8405,146.21,146.19,6.8411]
[1746476917828,6.8404,146.22,146.19,6.8411]
[1746476919829,6.8404,146.22,146.2,6.8409]
[1746476920229,6.8404,146.22,146.15,29.9358]
[1746476920429,26.0507,146.24,146.15,29.9358]
[1746476920627,26.0507,146.24,146.15,28.0024]
[1746476920826,11.4247621,146.23,146.15,23.92]
[1746476921028,6.8422,146.18,146.15,30.763]
[1746476921924,13.4630621,146.23,146.14,2.0]
[1746476922129,35.3447621,146.2,146.14,2.0]
[1746476922433,6.8433,146.15,146.14,2.0]
[1746476930430,6.8454,146.11,146.09,23.92]
[1746476933039,2.0347,146.19,146.09,23.92]
[1746476933040,25.9547,146.19,146.09,23.92]
[1746476933736,27.9665,146.19,146.11,6.8451]
[1746476934425,6.844,146.14,146.1,6.8454]
[1746476934631,27.9665,146.19,146.1,6.8454]
[1746476935539,6.8445,146.13,146.1,6.8454]
[1746476935935,11.4247621,146.18,146.09,30.7659]
[1746476936238,6.8452,146.11,146.09,23.92]
[1746476936640,6.8452,146.11,146.09,30.766]
[1746476936835,11.4247621,146.18,146.09,30.766]
[1746476937140,6.8448,146.12,146.09,30.766]
[1746476939942,6.8448,146.12,146.1,6.8456]
[1746476940142,6.8448,146.12,146.09,23.92]
[1746476940542,6.8448,146.12,146.1,6.8456]
[1746476941447,6.8448,146.12,146.09,30.7658]
[1746476941635,6.8451,146.11,146.09,30.7658]
[1746476941839,11.4247621,146.18,146.09,30.7658]
[1746476942245,6.845,146.12,146.09,30.7658]
[1746476942447,11.4247621,146.18,146.09,30.7658]
[1746476943849,6.845,146.12,146.09,30.7658]
[1746476944249,23.92,146.15,146.09,23.92]
[1746476944949,6.8449,146.12,146.09,30.7659]
[1746476945747,6.8449,146.12,146.09,31.7659]
[1746476947251,6.8449,146.12,146.1,6.8455]
[1746476947451,6.8444,146.13,146.1,6.8455]
[1746476948549,6.8447,146.12,146.1,6.8455]
[1746476948950,23.92,146.15,146.1,6.8455]
[1746476949344,6.8445,146.13,146.1,6.8455]
[1746476951249,6.8447,146.12,146.1,6.8455]
[1746476951851,6.8445,146.13,146.1,6.8455]
[1746476952052,23.92,146.15,146.1,6.8455]
[1746476952353,6.8446,146.13,146.1,6.8455]
[1746476953656,6.8446,146.13,146.11,6.845]
[1746476954155,31.24011581,146.15,146.12,6.8444]
[1746476954856,30.7636,146.15,146.12,6.8444]
[1746476955050,7.32011581,146.17,146.13,6.8442]
[1746476955358,6.8431,146.16,146.13,6.8442]
[1746476955955,6.8433,146.15,146.13,6.8442]
[1746476956557,6.8433,146.15,146.12,6.8444]
[1746476957857,6.843,146.16,146.13,6.8441]
[1746476961658,6.8425,146.17,146.14,6.8436]
[1746476963665,6.8428,146.16,146.14,6.8436]
[1746476963855,6.8428,146.16,146.13,6.844]
[1746476966263,6.8428,146.16,146.14,6.8437]
[1746476966861,6.8425,146.17,146.15,6.8432]
[1746476967064,6.8425,146.17,146.09,24.92]
[1746476967364,23.92,146.18,146.09,24.92]
[1746476967666,6.8428,146.16,146.14,6.8435]
[1746476969769,6.8426,146.17,146.09,24.92]
[1746476970065,23.92,146.18,146.09,24.92]
[1746476972270,6.8434,146.15,146.13,6.8439]
[1746476973471,6.843,146.16,146.13,6.8439]
[1746476973971,6.843,146.16,146.14,6.8437]
[1746476980078,6.843,146.16,146.12,7.31744085]
[1746476980280,6.843,146.16,146.13,6.844]
[1746476985281,6.8433,146.15,146.13,6.844]
[1746476986483,6.8433,146.15,146.12,6.8444]
[1746476988285,6.8433,146.15,146.13,6.8441]
[1746476988783,6.843,146.16,146.13,6.8441]
[1746476994791,6.843,146.16,146.14,6.8437]
[1746476995991,6.843,146.16,146.13,6.844]
[1746476997893,6.843,146.16,146.14,6.8437]
[1746477000494,6.8433,146.15,146.13,6.844]
[1746477001802,7.31744085,146.16,146.11,23.9]
[1746477002003,7.31744085,146.16,146.09,120.01425397]
[1746477002896,6.8444,146.13,146.1,6.8454]
[1746477004402,6.8444,146.13,146.11,6.8451]
[1746477004692,6.844,146.14,146.11,6.8451]
[1746477005396,7.31744085,146.16,146.12,6.8444]
[1746477005897,6.8435,146.15,146.12,6.8444]
[1746477006293,33.23664085,146.18,146.13,6.844]
[1746477006494,31.23744085,146.18,146.11,7.31744085]
[1746477006797,31.23744085,146.18,146.13,6.8442]
[1746477006989,6.8432,146.16,146.13,6.8442]
[1746477007190,31.23744085,146.18,146.11,7.31744085]
[1746477007395,31.23744085,146.18,146.12,6.8444]
[1746477007592,6.8435,146.15,146.12,6.8444]
[1746477008301,6.8435,146.15,146.12,7.8444]
[1746477008488,31.23744085,146.18,146.12,7.8444]
[1746477008897,6.8435,146.15,146.12,7.8444]
[1746477009092,7.31744085,146.16,146.12,1.0]
[1746477010496,6.8438,146.14,146.12,1.0]
[1746477011893,6.8442,146.13,146.12,1.0]
[1746477012106,23.9,146.13,146.09,1.0]
[1746477012293,7.31744085,146.1,146.04,23.9]
[1746477012600,6.847,146.07,146.03,1.0]
[1746477013299,6.847,146.07,146.03,7.8489]
[1746477013700,6.847,146.07,146.03,1.0]
[1746477014506,6.847,146.07,146.03,7.8488]
[1746477016408,6.847,146.07,146.03,1.0]
[1746477017597,6.8475,146.06,146.03,1.0]
[1746477021806,6.8484,146.04,146.03,1.0]
[1746477033011,32.8071,146.05,146.03,1.0]
[1746477033308,23.9,146.07,146.03,1.0]
[1746477034811,30.747,146.07,146.04,6.8481]
[1746477035517,6.8475,146.06,146.04,6.8481]
[1746477035812,6.8475,146.06,146.03,7.8485]
[1746477036015,6.8463,146.09,146.03,1.0]
[1746477036219,6.8463,146.09,146.06,6.8472]
[1746477037918,6.8459,146.1,146.06,6.8472]
[1746477038320,23.9,146.11,146.06,6.8472]
[1746477038715,23.9,146.11,146.05,6.8477]
[1746477039021,6.8463,146.09,146.05,6.8477]
[1746477039220,23.9,146.11,146.04,6.8484]
[1746477039621,6.8467,146.08,146.04,6.8484]
[1746477040221,6.8467,146.08,146.03,7.8487]
[1746477040720,6.8471,146.07,146.03,7.8487]
[1746477041622,23.9,146.11,146.03,1.0]
[1746477041919,35.34800962,146.11,146.03,1.0]
[1746477042619,6.8484,146.04,146.03,1.0]
[1746477045021,6.8503,146.0,145.99,28.0671]
[1746477045224,11.44800962,146.05,145.98,1.0]
[1746477045425,2.0377,146.04,145.98,1.0]
[1746477045724,23.9,146.03,145.98,1.0]
[1746477046026,6.8508,145.99,145.98,1.0]
[1746477047522,23.9,146.03,145.98,1.0]
[1746477047729,23.9,146.05,145.98,1.0]
[1746477048124,6.8492,146.03,145.99,6.8507]
[1746477048936,6.8494,146.02,145.99,6.8507]
[1746477049124,6.8494,146.02,145.98,7.851]
[1746477051038,23.9,146.05,145.98,1.0]
[1746477051237,35.34800962,146.04,145.98,1.0]
[1746477051639,6.8508,145.99,145.98,1.0]
[1746477052027,6.8508,145.99,145.98,0.0001]
[1746477053234,6.8534,145.94,145.91,1.9432]
[1746477053434,23.9,145.96,145.9,24.9]
[1746477053839,23.9,145.96,145.9,1.0]
[1746477055240,6.8538,145.93,145.9,1.0]
[1746477055642,6.8536,145.94,145.9,7.8548]
[1746477055842,23.9,145.96,145.9,1.0]
[1746477057442,23.9,145.96,145.93,6.8535]
[1746477057643,23.9,145.96,145.9,1.0]
[1746477057944,30.7524,145.96,145.93,6.8535]
[1746477059045,23.9,145.96,145.9,1.0]
[1746477060044,6.8525,145.96,145.9,1.0]
[1746477060244,11.44800962,146.0,145.9,1.0]
[1746477060441,6.8533,145.94,145.91,6.8544]
[1746477060745,24.18,145.99,145.9,1.0]
[1746477061038,6.8534,145.94,145.91,6.8545]
[1746477063144,6.8529,145.95,145.91,6.8545]
[1746477063336,24.18,145.99,145.9,1.0]
[1746477063535,24.18,145.99,145.91,24.18]
[1746477063741,6.8514,145.98,145.92,2.0234]
[1746477064142,6.8518,145.97,145.92,2.0234]
[1746477064342,24.18,145.99,145.92,2.0234]
[1746477064650,6.8517,145.97,145.92,2.0234]
[1746477064949,2.1328,146.02,145.92,2.0234]
[1746477065149,24.18,146.01,145.93,1.9795]
[1746477065448,24.18,146.01,145.93,8.8329]
[1746477066050,11.44800962,146.0,145.93,8.8329]
[1746477066651,6.8522,145.96,145.93,8.8329]
[1746477067052,6.8522,145.96,145.93,8.833]
[1746477067647,6.8522,145.96,145.93,6.8535]
[1746477069758,6.8522,145.96,145.92,2.0234]
[1746477070557,6.8522,145.96,145.93,6.8533]
[1746477071354,11.44800962,146.0,145.92,3.0234]
[1746477071355,6.8519,145.97,145.94,6.853]
[1746477071553,11.44800962,146.0,145.94,6.853]
[1746477071759,11.44800962,146.0,145.92,3.0234]
[1746477071956,6.8524,145.96,145.93,6.8533]
[1746477072154,11.44800962,146.0,145.92,3.0234]
[1746477072553,11.44800962,146.0,145.94,6.8531]
[1746477072862,11.44800962,146.0,145.92,3.0234]
[1746477073161,6.8525,145.96,145.93,6.8535]
[1746477073861,6.8527,145.95,145.93,6.8535]
[1746477074161,11.44800962,146.0,145.92,9.8772]
[1746477074362,11.44800962,146.0,145.92,1.0]
[1746477074667,6.8534,145.94,145.92,1.0]
[1746477076263,6.8528,145.95,145.92,7.854]
[1746477076865,6.8533,145.94,145.92,1.0]
[1746477077063,11.44800962,146.0,145.92,1.0]
[1746477077265,11.44800962,145.97,145.92,1.0]
[1746477077465,1.9373,145.96,145.92,1.0]
[1746477077761,24.18,145.95,145.92,1.0]
[1746477078864,6.8536,145.93,145.92,1.0]
[1746477082171,6.8533,145.94,145.92,1.0]
[1746477082360,24.18,145.95,145.92,1.0]
[1746477083468,31.0329,145.95,145.92,1.0]
[1746477084368,6.8532,145.94,145.92,1.0]
[1746477085569,6.8536,145.93,145.92,1.0]
[1746477085770,24.18,145.95,145.92,1.0]
[1746477085973,6.8533,145.94,145.92,1.0]
[1746477086873,31.0329,145.95,145.92,7.8538]
[1746477087167,6.8529,145.95,145.92,7.8538]
[1746477088069,6.8531,145.94,145.92,7.8538]
[1746477088269,24.44,145.98,145.93,6.8535]
[1746477088470,24.44,145.98,145.92,1.0]
[1746477088665,6.8527,145.95,145.92,1.0]
[1746477089070,6.8527,145.95,145.92,7.8538]
[1746477089272,6.8534,145.94,145.92,1.0]
[1746477090369,6.8536,145.93,145.92,1.0]
[1746477095974,6.8536,145.93,145.92,0.0001]
[1746477096374,8.8802,145.93,145.92,0.0001]
[1746477096580,8.8802,145.93,145.9,1.0]
[1746477096581,6.8545,145.91,145.9,1.0]
[1746477096975,6.8545,145.91,145.9,0.0001]
[1746477097969,6.8566,145.87,145.84,1.0]
[1746477098170,6.8566,145.87,145.84,7.8576]
[1746477098366,2.0266,145.93,145.84,7.8576]
[1746477098572,2.0266,145.93,145.84,1.0]
[1746477098766,11.44800962,145.91,145.84,1.0]
[1746477098976,24.46,145.9,145.84,1.0]
[1746477099177,6.8571,145.86,145.84,1.0]
[1746477099573,24.46,145.9,145.84,1.0]
[1746477099872,6.8568,145.87,145.84,1.0]
[1746477101181,6.8568,145.87,145.84,7.8576]
[1746477104378,35.90800962,145.9,145.84,1.0]
[1746477104878,24.46,145.9,145.84,1.0]
[1746477105374,6.8561,145.88,145.84,7.8575]
[1746477105578,26.4866,145.93,145.84,25.46]
[1746477105974,24.46,145.93,145.84,36.90800962]
[1746477106280,26.5221,145.96,145.85,2.0906]
[1746477106483,6.8539,145.93,145.9,6.855]
[1746477107781,24.46,145.96,145.88,26.4535]
[1746477108083,6.8548,145.91,145.88,33.3092]
[1746477108877,6.855,145.9,145.88,33.3093]
[1746477109388,6.8543,145.92,145.89,6.8552]
[1746477109681,24.46,145.96,145.88,24.46]
[1746477109878,6.8554,145.9,145.85,26.5506]
[1746477110081,24.46,145.92,145.85,26.5506]
[1746477110381,24.46,145.92,145.85,24.46]
[1746477110574,6.8557,145.89,145.86,6.8569]
[1746477110771,6.8557,145.89,145.85,24.46]
[1746477111180,6.8557,145.89,145.85,31.317]
[1746477111380,6.856,145.88,145.85,31.317]
[1746477111575,24.46,145.92,145.85,24.46]
[1746477111879,24.46,145.92,145.85,31.3173]
[1746477113186,24.46,145.92,145.85,24.46]
[1746477113985,6.8562,145.88,145.85,24.46]
[1746477114585,6.8562,145.88,145.85,31.3173]
[1746477114877,24.46,145.92,145.84,1.0]
[1746477115083,2.0489,145.95,145.75,7.8619]
[1746477115084,18.36965729,145.86,145.75,7.8619]
[1746477115386,6.8595,145.81,145.75,7.8619]
[1746477115583,24.46,145.83,145.75,1.0]
[1746477115785,6.8596,145.81,145.75,1.0]
[1746477115981,24.46,145.83,145.75,1.0]
[1746477116489,24.46,145.83,145.75,7.862]
[1746477117286,24.46,145.83,145.75,1.0]
[1746477117679,6.8609,145.78,145.75,1.0]
[1746477118288,24.46,145.83,145.75,1.0]
[1746477119087,6.8609,145.78,145.75,1.0]
[1746477120192,6.8609,145.78,145.75,7.862]
[1746477120390,6.8603,145.79,145.75,7.862]
[1746477120688,24.46,145.83,145.75,7.862]
[1746477121390,24.46,145.83,145.75,1.0]
[1746477121594,2.1386,145.82,145.75,1.0]
[1746477121888,6.8611,145.77,145.75,1.0]
[1746477123185,6.8616,145.76,145.75,1.0]
[1746477123586,24.78,145.79,145.75,1.0]
[1746477123787,6.8609,145.78,145.75,1.0]
[1746477124080,24.78,145.79,145.75,1.0]
[1746477124885,6.8614,145.77,145.75,1.0]
[1746477125194,24.78,145.79,145.75,1.0]
[1746477125392,6.8616,145.76,145.75,1.0]
[1746477125587,24.78,145.79,145.7,24.8]
[1746477125792,43.16538428,145.79,145.7,24.8]
[1746477127193,1.936,145.78,145.7,24.8]
[1746477127390,1.936,145.78,145.67,24.8]
[1746477128390,26.736,145.78,145.67,24.8]
[1746477128784,24.8,145.78,145.67,24.8]
[1746477129194,6.8616,145.76,145.73,6.8627]
[1746477129794,6.8623,145.75,145.72,31.6633]
[1746477130395,6.8617,145.76,145.73,6.8629]
[1746477130690,24.8,145.8,145.68,24.8]
[1746477130992,18.38538428,145.79,145.68,24.8]
[1746477131389,2.0369,145.78,145.68,24.8]
[1746477131694,6.8638,145.72,145.68,31.6649]
[1746477131894,24.8,145.75,145.68,24.8]
[1746477132392,6.8638,145.72,145.68,31.6651]
[1746477133097,24.8,145.75,145.68,24.8]
[1746477133594,6.8634,145.73,145.72,1.0]
[1746477136195,24.8,145.75,145.65,24.8]
[1746477136395,3.962,145.74,145.65,24.8]
[1746477136597,18.38538428,145.73,145.64,1.0]
[1746477137096,2.0317,145.72,145.64,1.0]
[1746477137285,6.8668,145.65,145.64,1.0]
[1746477138292,6.8668,145.65,145.64,0.0001]
[1746477146901,6.8682,145.62,145.61,1.0]
[1746477147293,31.6882,145.62,145.61,1.0]
[1746477147793,6.8705,145.57,145.56,1.0]
[1746477148801,6.8715,145.55,145.49,38.3285]
[1746477148993,6.8715,145.55,145.49,31.4544]
[1746477149196,25.34,145.58,145.49,31.4544]
[1746477149490,6.8711,145.56,145.49,31.4544]
[1746477149790,25.34,145.58,145.49,31.4544]
[1746477149996,6.8706,145.57,145.52,6.8725]
[1746477150191,569.16,145.62,145.5,18.38538428]
[1746477150399,569.16,145.62,145.53,25.34]
[1746477151100,6.8694,145.6,145.57,6.8705]
[1746477151293,569.16,145.62,145.57,6.8705]
[1746477151494,25.34,145.62,145.53,43.72538428]
[1746477151700,6.8689,145.61,145.58,6.8698]
[1746477151899,25.34,145.62,145.55,5.9941]
[1746477152500,6.8687,145.61,145.58,6.8697]
[1746477153199,6.8692,145.6,145.58,6.8697]
[1746477154495,6.8696,145.59,145.57,6.8705]
[1746477155402,6.8696,145.59,145.56,6.8708]
[1746477155697,6.8694,145.6,145.55,5.9941]
[1746477155901,25.34,145.62,145.55,5.9941]
[1746477156304,6.8689,145.61,145.55,5.9941]
[1746477156596,6.8689,145.61,145.59,6.8695]
[1746477157002,32.2084,145.62,145.55,5.9941]
[1746477157197,25.34,145.64,145.61,6.8686]
[1746477157703,32.2074,145.64,145.61,6.8686]
[1746477158203,25.34,145.64,145.62,6.8681]
[1746477158603,6.867,145.65,145.57,25.34]
[1746477158903,6.867,145.65,145.62,6.8679]
[1746477159197,6.8665,145.66,145.57,25.34]
[1746477159402,25.34,145.67,145.64,6.867]
[1746477159601,25.34,145.67,145.57,43.72538428]
[1746477159804,6.8665,145.66,145.57,43.72538428]
[1746477160006,25.34,145.67,145.64,6.8672]
[1746477160205,32.206,145.67,145.64,6.8672]
[1746477160395,25.34,145.67,145.61,25.34]
[1746477160598,25.34,145.67,145.65,6.8665]
[1746477161005,6.8655,145.68,145.65,6.8665]
[1746477161211,14.77664912,145.73,145.67,6.8658]
[1746477161505,25.34,145.72,145.63,2.0364]
[1746477161907,6.8646,145.7,145.63,2.0364]
[1746477162306,25.34,145.72,145.63,2.0364]
[1746477163204,6.8647,145.7,145.63,2.0364]
[1746477163506,25.34,145.72,145.63,2.0364]
[1746477163701,6.8647,145.7,145.67,6.8655]
[1746477164708,6.8649,145.69,145.67,6.8655]
[1746477165209,6.8649,145.69,145.66,6.8662]
[1746477165412,6.8654,145.68,145.66,6.8662]
[1746477166008,6.8658,145.67,145.63,2.0364]
[1746477166312,25.34,145.72,145.63,6.8675]
[1746477166513,6.8666,145.66,145.63,6.8675]
[1746477167514,6.8666,145.66,145.64,6.8672]
[1746477167715,6.866,145.67,145.64,6.8672]
[1746477168612,6.8666,145.66,145.63,6.8676]
[1746477169216,6.8668,145.65,145.63,6.8676]
[1746477169419,13.58143,145.73,145.63,18.38538428]
[1746477169717,20.44473,145.73,145.64,20.49275285]
[1746477169918,20.44473,145.73,145.7,6.8641]
[1746477170315,20.44473,145.73,145.65,25.34]
[1746477170517,13.58143,145.73,145.72,6.8635]
[1746477171120,13.58143,145.73,145.71,6.8637]
[1746477171521,20.44443,145.73,145.71,6.8637]
[1746477172122,20.44443,145.73,145.7,6.8642]
[1746477174626,20.44443,145.73,145.65,25.34]